[Event "Titled Tuesday Blitz March 15 Late 2022"]
[White "Artemenko, Oleg"]
[Black "Hirneise, Jens"]
[WhiteFideId "14201798"]
[BlackFideId "24614734"]
[WhiteElo "2287"]
[BlackElo "2359"]
[Result "1-0"]
[Round "07"]
[TimeControl "180+1"]
[Date "2022.03.16"]
[WhiteClock "0:02:01"]
[BlackClock "0:01:08"]

1. d4 {[%clk 0:03:00]}  Nf6 {[%clk 0:02:55]} 2. Nc3 {[%clk 0:03:00]}  d5 {[%clk 0:02:48]} 3. Bf4 {[%clk 0:03:00]}  c6 {[%clk 0:02:45]} 4. f3 {[%clk 0:03:00]}  g6 {[%clk 0:02:44]} 5. Qd2 {[%clk 0:03:00]}  h5 {[%clk 0:02:39]} 6. O-O-O {[%clk 0:02:59]}  a5 {[%clk 0:02:31]} 7. e4 {[%clk 0:02:58]}  Na6 {[%clk 0:02:29]} 8. e5 {[%clk 0:02:57]}  Ng8 {[%clk 0:02:27]} 9. h4 {[%clk 0:02:58]}  Bh6 {[%clk 0:02:24]} 10. Bxa6 {[%clk 0:02:54]}  Rxa6 {[%clk 0:02:24]} 11. Nge2 {[%clk 0:02:55]}  a4 {[%clk 0:02:23]} 12. Rdg1 {[%clk 0:02:51]}  a3 {[%clk 0:02:21]} 13. b3 {[%clk 0:02:51]}  Bxf4 {[%clk 0:02:18]} 14. Qxf4 {[%clk 0:02:48]}  Nh6 {[%clk 0:02:14]} 15. g4 {[%clk 0:02:48]}  hxg4 {[%clk 0:02:14]} 16. fxg4 {[%clk 0:02:49]}  Nxg4 {[%clk 0:02:12]} 17. Rxg4 {[%clk 0:02:47]}  Bxg4 {[%clk 0:02:13]} 18. Qxg4 {[%clk 0:02:48]}  Qd7 {[%clk 0:02:14]} 19. Qg3 {[%clk 0:02:40]}  Ra8 {[%clk 0:02:04]} 20. Nf4 {[%clk 0:02:37]}  Qf5 {[%clk 0:02:04]} 21. e6 {[%clk 0:02:36]}  fxe6 {[%clk 0:02:02]} 22. Nxg6 {[%clk 0:02:30]}  Rh6 {[%clk 0:01:52]} 23. Ne5 {[%clk 0:02:27]}  Rf6 {[%clk 0:01:46]} 24. Ne2 {[%clk 0:02:22]}  Qf2 {[%clk 0:01:43]} 25. Qg8+ {[%clk 0:02:19]}  Rf8 {[%clk 0:01:43]} 26. Qxe6 {[%clk 0:02:20]}  Rf6 {[%clk 0:01:24]} 27. Qg8+ {[%clk 0:02:16]}  Rf8 {[%clk 0:01:22]} 28. Qg4 {[%clk 0:02:11]}  Qf5 {[%clk 0:01:18]} 29. Qxf5 {[%clk 0:02:01]}  Rxf5 {[%clk 0:01:19]} 30. h5 {[%clk 0:02:02]}  Kf8 {[%clk 0:01:13]} 31. h6 {[%clk 0:02:01]}  Kg8 {[%clk 0:01:13]} 32. h7+ {[%clk 0:02:01]}  Kg7 {[%clk 0:01:12]} 33. Ng6 {[%clk 0:02:02]}  Kxg6 {[%clk 0:01:06]} 34. h8=Q {[%clk 0:02:01]}  Rxh8 {[%clk 0:01:07]} 35. Rxh8 {[%clk 0:02:02]}  Rf1+ {[%clk 0:01:08]} 36. Kd2 {[%clk 0:02:01]}  Ra1 {[%clk 0:01:08]} 37. Nc1 {[%clk 0:02:01]} 1-0


[Site "https://www.chess.com"]

[Event "Titled Tuesday Blitz March 15 Late 2022"]
[White "Baches Garcia, Guillermo"]
[Black "Kadam, Om Manish"]
[WhiteFideId "2209764"]
[BlackFideId "45076294"]
[WhiteElo "2440"]
[BlackElo "1729"]
[Result "1-0"]
[Round "07"]
[TimeControl "180+1"]
[Date "2022.03.16"]
[WhiteClock "0:00:22"]
[BlackClock "0:00:56"]

1. e4 {[%clk 0:03:00]}  c6 {[%clk 0:02:56]} 2. Nf3 {[%clk 0:03:00]}  d5 {[%clk 0:02:55]} 3. Nc3 {[%clk 0:03:01]}  g6 {[%clk 0:02:52]} 4. d4 {[%clk 0:02:59]}  Bg7 {[%clk 0:02:49]} 5. h3 {[%clk 0:02:59]}  dxe4 {[%clk 0:02:48]} 6. Nxe4 {[%clk 0:02:59]}  Nf6 {[%clk 0:02:49]} 7. Nxf6+ {[%clk 0:02:59]}  exf6 {[%clk 0:02:49]} 8. Bc4 {[%clk 0:02:48]}  O-O {[%clk 0:02:49]} 9. O-O {[%clk 0:02:48]}  Nd7 {[%clk 0:02:47]} 10. a4 {[%clk 0:02:47]}  Nb6 {[%clk 0:02:47]} 11. Bb3 {[%clk 0:02:45]}  Nd5 {[%clk 0:02:47]} 12. c3 {[%clk 0:02:43]}  Be6 {[%clk 0:02:47]} 13. Re1 {[%clk 0:02:41]}  Re8 {[%clk 0:02:47]} 14. Bd2 {[%clk 0:02:32]}  Qd7 {[%clk 0:02:46]} 15. a5 {[%clk 0:02:28]}  Rad8 {[%clk 0:02:45]} 16. c4 {[%clk 0:02:17]}  Nc7 {[%clk 0:02:42]} 17. Bc3 {[%clk 0:02:16]}  h6 {[%clk 0:02:38]} 18. Ba2 {[%clk 0:01:57]}  f5 {[%clk 0:02:34]} 19. Ne5 {[%clk 0:01:55]}  Qc8 {[%clk 0:02:33]} 20. b4 {[%clk 0:01:49]}  Kh7 {[%clk 0:02:31]} 21. Qf3 {[%clk 0:01:43]}  Na6 {[%clk 0:02:14]} 22. Rad1 {[%clk 0:01:39]}  Bf8 {[%clk 0:02:11]} 23. d5 {[%clk 0:01:34]}  cxd5 {[%clk 0:02:07]} 24. cxd5 {[%clk 0:01:34]}  Bd7 {[%clk 0:02:05]} 25. Nxf7 {[%clk 0:01:21]}  Rxe1+ {[%clk 0:01:59]} 26. Rxe1 {[%clk 0:01:04]}  Re8 {[%clk 0:01:59]} 27. Rxe8 {[%clk 0:00:54]}  Qxe8 {[%clk 0:01:54]} 28. d6 {[%clk 0:00:52]}  Bc6 {[%clk 0:01:51]} 29. Qd3 {[%clk 0:00:46]}  Be4 {[%clk 0:01:43]} 30. Qd4 {[%clk 0:00:42]}  g5 {[%clk 0:01:34]} 31. Qh8+ {[%clk 0:00:37]}  Kg6 {[%clk 0:01:34]} 32. g4 {[%clk 0:00:26]}  fxg4 {[%clk 0:01:13]} 33. hxg4 {[%clk 0:00:26]}  Qxf7 {[%clk 0:01:07]} 34. Bxf7+ {[%clk 0:00:23]}  Kxf7 {[%clk 0:01:08]} 35. Qf6+ {[%clk 0:00:22]}  Ke8 {[%clk 0:01:04]} 36. Qe6+ {[%clk 0:00:22]}  Kd8 {[%clk 0:00:56]} 37. Bf6+ {[%clk 0:00:22]} 1-0


[Site "https://www.chess.com"]

[Event "Titled Tuesday Blitz March 15 Late 2022"]
[White "Brunner, Nicolas"]
[Black "Krasteva, Beloslava"]
[WhiteFideId "620246"]
[BlackFideId "2922029"]
[WhiteElo "2372"]
[BlackElo "1689"]
[Result "1-0"]
[Round "07"]
[TimeControl "180+1"]
[Date "2022.03.16"]
[WhiteClock "0:00:13"]
[BlackClock "0:00:02"]

1. d4 {[%clk 0:02:59]}  Nf6 {[%clk 0:02:59]} 2. c4 {[%clk 0:02:58]}  e6 {[%clk 0:02:59]} 3. g3 {[%clk 0:02:59]}  d5 {[%clk 0:02:47]} 4. Bg2 {[%clk 0:02:58]}  Be7 {[%clk 0:02:47]} 5. Nf3 {[%clk 0:02:58]}  O-O {[%clk 0:02:46]} 6. O-O {[%clk 0:02:58]}  dxc4 {[%clk 0:02:46]} 7. Qa4 {[%clk 0:02:57]}  a6 {[%clk 0:02:44]} 8. Qxc4 {[%clk 0:02:56]}  b5 {[%clk 0:02:44]} 9. Qc2 {[%clk 0:02:55]}  Bb7 {[%clk 0:02:44]} 10. Bd2 {[%clk 0:02:55]}  Be4 {[%clk 0:02:39]} 11. Qc1 {[%clk 0:02:54]}  Bb7 {[%clk 0:02:38]} 12. Bf4 {[%clk 0:02:52]}  Bd6 {[%clk 0:02:37]} 13. Nbd2 {[%clk 0:02:50]}  Bxf4 {[%clk 0:02:21]} 14. gxf4 {[%clk 0:02:49]}  Nbd7 {[%clk 0:02:22]} 15. Nb3 {[%clk 0:02:48]}  Rc8 {[%clk 0:02:17]} 16. Na5 {[%clk 0:02:25]}  Bd5 {[%clk 0:02:14]} 17. Nc6 {[%clk 0:02:21]}  Qe8 {[%clk 0:02:12]} 18. e3 {[%clk 0:01:53]}  Nb6 {[%clk 0:02:02]} 19. Nfe5 {[%clk 0:01:52]}  Bxg2 {[%clk 0:01:47]} 20. Kxg2 {[%clk 0:01:52]}  Nfd7 {[%clk 0:01:47]} 21. Qc2 {[%clk 0:01:35]}  f6 {[%clk 0:01:46]} 22. Nxd7 {[%clk 0:00:56]}  Qxd7 {[%clk 0:01:45]} 23. Qe4 {[%clk 0:00:56]}  Nc4 {[%clk 0:01:27]} 24. Rfc1 {[%clk 0:00:45]}  Nxb2 {[%clk 0:01:24]} 25. Na5 {[%clk 0:00:41]}  f5 {[%clk 0:00:34]} 26. Qc6 {[%clk 0:00:38]}  Qf7 {[%clk 0:00:25]} 27. Kh1 {[%clk 0:00:35]}  Nd3 {[%clk 0:00:22]} 28. Rf1 {[%clk 0:00:28]}  Nb4 {[%clk 0:00:22]} 29. Qc5 {[%clk 0:00:24]}  Nd5 {[%clk 0:00:22]} 30. Rac1 {[%clk 0:00:23]}  Qh5 {[%clk 0:00:18]} 31. Rg1 {[%clk 0:00:23]}  Qf3+ {[%clk 0:00:17]} 32. Rg2 {[%clk 0:00:23]}  Rf6 {[%clk 0:00:16]} 33. Kg1 {[%clk 0:00:21]}  Qe2 {[%clk 0:00:07]} 34. Qc2 {[%clk 0:00:17]}  Qf3 {[%clk 0:00:05]} 35. Nc6 {[%clk 0:00:16]}  Rh6 {[%clk 0:00:04]} 36. Ne5 {[%clk 0:00:15]}  Qh5 {[%clk 0:00:03]} 37. Qc6 {[%clk 0:00:14]}  Nb4 {[%clk 0:00:02]} 38. Qd7 {[%clk 0:00:13]} 1-0


[Site "https://www.chess.com"]

[Event "Titled Tuesday Blitz March 15 Late 2022"]
[White "Cervantes Landeiro, Thalia"]
[Black "Matinian, Nikita"]
[WhiteFideId "3520498"]
[BlackFideId "24129100"]
[WhiteElo "2021"]
[BlackElo "2422"]
[Result "1/2-1/2"]
[Round "07"]
[TimeControl "180+1"]
[Date "2022.03.16"]
[WhiteClock "0:00:04"]
[BlackClock "0:00:03"]

1. d4 {[%clk 0:02:56]}  g6 {[%clk 0:02:59]} 2. c4 {[%clk 0:02:56]}  d6 {[%clk 0:02:59]} 3. Nc3 {[%clk 0:02:56]}  Bg7 {[%clk 0:03:00]} 4. e4 {[%clk 0:02:55]}  Nc6 {[%clk 0:02:59]} 5. Be3 {[%clk 0:02:41]}  e5 {[%clk 0:02:59]} 6. d5 {[%clk 0:02:40]}  Nd4 {[%clk 0:02:59]} 7. Nge2 {[%clk 0:02:31]}  Nxe2 {[%clk 0:02:59]} 8. Bxe2 {[%clk 0:02:31]}  h5 {[%clk 0:03:00]} 9. c5 {[%clk 0:02:17]}  Bh6 {[%clk 0:02:58]} 10. Bxh6 {[%clk 0:02:16]}  Nxh6 {[%clk 0:02:59]} 11. Bb5+ {[%clk 0:02:05]}  Kf8 {[%clk 0:02:59]} 12. cxd6 {[%clk 0:02:04]}  cxd6 {[%clk 0:02:59]} 13. O-O {[%clk 0:02:01]}  h4 {[%clk 0:02:59]} 14. h3 {[%clk 0:01:49]}  Ng8 {[%clk 0:02:59]} 15. Bd3 {[%clk 0:01:44]}  Nf6 {[%clk 0:02:57]} 16. Qd2 {[%clk 0:01:44]}  Nh5 {[%clk 0:02:56]} 17. Ne2 {[%clk 0:01:38]}  Bd7 {[%clk 0:02:54]} 18. Rac1 {[%clk 0:01:37]}  Kg7 {[%clk 0:02:50]} 19. f4 {[%clk 0:01:25]}  Qb6+ {[%clk 0:02:50]} 20. Kh2 {[%clk 0:01:19]}  exf4 {[%clk 0:02:46]} 21. Nxf4 {[%clk 0:01:15]}  Qd4 {[%clk 0:02:43]} 22. Nxh5+ {[%clk 0:01:04]}  Rxh5 {[%clk 0:02:44]} 23. Qc3 {[%clk 0:01:04]}  Qxc3 {[%clk 0:02:39]} 24. Rxc3 {[%clk 0:01:05]}  Rb8 {[%clk 0:02:14]} 25. Rc7 {[%clk 0:01:03]}  Be8 {[%clk 0:02:14]} 26. Rfc1 {[%clk 0:00:55]}  Re5 {[%clk 0:02:11]} 27. Rc8 {[%clk 0:00:47]}  Rxc8 {[%clk 0:02:11]} 28. Rxc8 {[%clk 0:00:47]}  Re7 {[%clk 0:02:09]} 29. g3 {[%clk 0:00:37]}  Kf6 {[%clk 0:02:05]} 30. gxh4 {[%clk 0:00:33]}  Ke5 {[%clk 0:02:05]} 31. Kg3 {[%clk 0:00:30]}  Kd4 {[%clk 0:02:06]} 32. Bc2 {[%clk 0:00:29]}  Bb5 {[%clk 0:01:58]} 33. Rc3 {[%clk 0:00:22]}  a5 {[%clk 0:01:50]} 34. Kf4 {[%clk 0:00:15]}  a4 {[%clk 0:01:47]} 35. Ra3 {[%clk 0:00:15]}  b6 {[%clk 0:01:32]} 36. Rc3 {[%clk 0:00:14]}  Bc4 {[%clk 0:01:27]} 37. a3 {[%clk 0:00:12]}  b5 {[%clk 0:01:26]} 38. Re3 {[%clk 0:00:11]}  f5 {[%clk 0:01:24]} 39. Re1 {[%clk 0:00:10]}  Kc5 {[%clk 0:01:02]} 40. Rd1 {[%clk 0:00:08]}  Rh7 {[%clk 0:00:39]} 41. exf5 {[%clk 0:00:08]}  gxf5 {[%clk 0:00:37]} 42. Bxf5 {[%clk 0:00:09]}  Rxh4+ {[%clk 0:00:38]} 43. Kg5 {[%clk 0:00:09]}  Rh8 {[%clk 0:00:36]} 44. h4 {[%clk 0:00:10]}  Rg8+ {[%clk 0:00:31]} 45. Kf6 {[%clk 0:00:09]}  Rf8+ {[%clk 0:00:29]} 46. Kg5 {[%clk 0:00:09]}  Bxd5 {[%clk 0:00:24]} 47. Rc1+ {[%clk 0:00:08]}  Kd4 {[%clk 0:00:24]} 48. Rd1+ {[%clk 0:00:08]}  Kc5 {[%clk 0:00:24]} 49. Rc1+ {[%clk 0:00:08]}  Bc4 {[%clk 0:00:19]} 50. h5 {[%clk 0:00:08]}  Rg8+ {[%clk 0:00:14]} 51. Kf6 {[%clk 0:00:07]}  Rh8 {[%clk 0:00:14]} 52. Bg6 {[%clk 0:00:07]}  d5 {[%clk 0:00:11]} 53. Kg7 {[%clk 0:00:07]}  Rb8 {[%clk 0:00:10]} 54. h6 {[%clk 0:00:08]}  b4 {[%clk 0:00:11]} 55. axb4+ {[%clk 0:00:07]}  Kxb4 {[%clk 0:00:10]} 56. h7 {[%clk 0:00:07]}  Kb3 {[%clk 0:00:11]} 57. Rc2 {[%clk 0:00:06]}  d4 {[%clk 0:00:08]} 58. h8=Q {[%clk 0:00:04]}  Rxh8 {[%clk 0:00:08]} 59. Kxh8 {[%clk 0:00:05]}  Bf7 {[%clk 0:00:04]} 60. Bd3 {[%clk 0:00:04]}  Bd5 {[%clk 0:00:02]} 61. Kg7 {[%clk 0:00:04]}  Kb4 {[%clk 0:00:01]} 62. Kf6 {[%clk 0:00:04]}  Bb3 {[%clk 0:00:01]} 63. Rd2 {[%clk 0:00:04]}  a3 {[%clk 0:00:01]} 64. bxa3+ {[%clk 0:00:04]}  Kc3 {[%clk 0:00:02]} 65. Rf2 {[%clk 0:00:02]}  Kxd3 {[%clk 0:00:03]} 66. Ke5 {[%clk 0:00:03]}  Kc3 {[%clk 0:00:03]} 67. Ke4 {[%clk 0:00:03]}  d3 {[%clk 0:00:03]} 68. Ke3 {[%clk 0:00:03]}  Bc2 {[%clk 0:00:01]} 69. Rd2 {[%clk 0:00:03]}  Kb3 {[%clk 0:00:01]} 70. Rf2 {[%clk 0:00:02]}  Kxa3 {[%clk 0:00:01]} 71. Kd2 {[%clk 0:00:03]}  Kb2 {[%clk 0:00:02]} 72. Rf4 {[%clk 0:00:03]}  Kb3 {[%clk 0:00:03]} 73. Rf8 {[%clk 0:00:03]}  Ka3 {[%clk 0:00:02]} 74. Rb8 {[%clk 0:00:04]}  Ka4 {[%clk 0:00:02]} 75. Kc3 {[%clk 0:00:04]}  Ka5 {[%clk 0:00:03]} 76. Kd2 {[%clk 0:00:03]}  Ka6 {[%clk 0:00:03]} 77. Rd8 {[%clk 0:00:03]}  Kb5 {[%clk 0:00:03]} 78. Rxd3 {[%clk 0:00:04]}  Bxd3 {[%clk 0:00:03]} 1/2-1/2


[Site "https://www.chess.com"]

[Event "Titled Tuesday Blitz March 15 Late 2022"]
[White "Chiu, Isaac"]
[Black "Fiorito, Fabian"]
[WhiteFideId "30900654"]
[BlackFideId "100200"]
[WhiteElo "2117"]
[BlackElo "2395"]
[Result "0-1"]
[Round "07"]
[TimeControl "180+1"]
[Date "2022.03.16"]
[WhiteClock "0:00:06"]
[BlackClock "0:00:27"]

1. Nf3 {[%clk 0:02:56]}  Nf6 {[%clk 0:02:58]} 2. g3 {[%clk 0:02:57]}  g6 {[%clk 0:02:57]} 3. Bg2 {[%clk 0:02:57]}  Bg7 {[%clk 0:02:57]} 4. O-O {[%clk 0:02:58]}  O-O {[%clk 0:02:46]} 5. c4 {[%clk 0:02:57]}  c6 {[%clk 0:02:46]} 6. b3 {[%clk 0:02:57]}  d5 {[%clk 0:02:44]} 7. Bb2 {[%clk 0:02:57]}  Nbd7 {[%clk 0:02:40]} 8. d3 {[%clk 0:02:55]}  b6 {[%clk 0:02:39]} 9. Nbd2 {[%clk 0:02:56]}  Bb7 {[%clk 0:02:36]} 10. Qc2 {[%clk 0:02:55]}  e6 {[%clk 0:02:35]} 11. a3 {[%clk 0:02:40]}  c5 {[%clk 0:02:34]} 12. b4 {[%clk 0:02:37]}  d4 {[%clk 0:02:29]} 13. Nb3 {[%clk 0:02:31]}  Qc7 {[%clk 0:02:25]} 14. e3 {[%clk 0:02:28]}  e5 {[%clk 0:02:23]} 15. exd4 {[%clk 0:02:28]}  exd4 {[%clk 0:02:24]} 16. Bc1 {[%clk 0:02:27]}  Nh5 {[%clk 0:02:14]} 17. Bg5 {[%clk 0:02:20]}  Rfe8 {[%clk 0:02:12]} 18. Rfe1 {[%clk 0:02:18]}  h6 {[%clk 0:02:04]} 19. Bd2 {[%clk 0:02:17]}  f5 {[%clk 0:02:02]} 20. Nh4 {[%clk 0:01:54]}  Bxg2 {[%clk 0:01:57]} 21. Kxg2 {[%clk 0:01:55]}  Kh7 {[%clk 0:01:53]} 22. a4 {[%clk 0:01:48]}  Qc6+ {[%clk 0:01:49]} 23. Kg1 {[%clk 0:01:46]}  Ndf6 {[%clk 0:01:48]} 24. a5 {[%clk 0:01:37]}  Ng4 {[%clk 0:01:44]} 25. axb6 {[%clk 0:01:21]}  axb6 {[%clk 0:01:45]} 26. Rxa8 {[%clk 0:01:18]}  Rxa8 {[%clk 0:01:43]} 27. bxc5 {[%clk 0:01:14]}  bxc5 {[%clk 0:01:41]} 28. h3 {[%clk 0:00:45]}  Ne5 {[%clk 0:01:37]} 29. f4 {[%clk 0:00:45]}  Nf7 {[%clk 0:01:25]} 30. Kh2 {[%clk 0:00:41]}  Bf6 {[%clk 0:01:19]} 31. Ng2 {[%clk 0:00:36]}  Qf3 {[%clk 0:01:17]} 32. Nxc5 {[%clk 0:00:30]}  Qxg3+ {[%clk 0:01:15]} 33. Kg1 {[%clk 0:00:30]}  Rc8 {[%clk 0:01:06]} 34. Nd7 {[%clk 0:00:21]}  Bg7 {[%clk 0:01:04]} 35. Re7 {[%clk 0:00:20]}  Kg8 {[%clk 0:01:03]} 36. Be1 {[%clk 0:00:20]}  Qf3 {[%clk 0:01:02]} 37. Qf2 {[%clk 0:00:18]}  Qxh3 {[%clk 0:01:00]} 38. Ne5 {[%clk 0:00:16]}  Nxe5 {[%clk 0:00:56]} 39. fxe5 {[%clk 0:00:17]}  Qxd3 {[%clk 0:00:56]} 40. e6 {[%clk 0:00:15]}  Qxc4 {[%clk 0:00:54]} 41. Nh4 {[%clk 0:00:14]}  d3 {[%clk 0:00:52]} 42. Qg2 {[%clk 0:00:10]}  Qg4 {[%clk 0:00:48]} 43. Nxg6 {[%clk 0:00:09]}  Bd4+ {[%clk 0:00:46]} 44. Kh1 {[%clk 0:00:10]}  Rc1 {[%clk 0:00:42]} 45. Qxg4 {[%clk 0:00:05]}  Rxe1+ {[%clk 0:00:41]} 46. Kg2 {[%clk 0:00:06]}  fxg4 {[%clk 0:00:40]} 47. Rd7 {[%clk 0:00:07]}  d2 {[%clk 0:00:37]} 48. Ne7+ {[%clk 0:00:06]}  Kg7 {[%clk 0:00:34]} 49. Nf5+ {[%clk 0:00:06]}  Kf6 {[%clk 0:00:34]} 50. Rxd4 {[%clk 0:00:04]}  Kxf5 {[%clk 0:00:31]} 51. Rxd2 {[%clk 0:00:04]}  Rxe6 {[%clk 0:00:31]} 52. Rf2+ {[%clk 0:00:05]}  Kg5 {[%clk 0:00:31]} 53. Ra2 {[%clk 0:00:06]}  Nf4+ {[%clk 0:00:31]} 54. Kg3 {[%clk 0:00:07]}  Re3+ {[%clk 0:00:31]} 55. Kf2 {[%clk 0:00:08]}  Rf3+ {[%clk 0:00:29]} 56. Kg1 {[%clk 0:00:09]}  h5 {[%clk 0:00:30]} 57. Ra5+ {[%clk 0:00:09]}  Kh4 {[%clk 0:00:30]} 58. Ra2 {[%clk 0:00:10]}  Kg3 {[%clk 0:00:30]} 59. Rh2 {[%clk 0:00:07]}  h4 {[%clk 0:00:29]} 60. Rh1 {[%clk 0:00:06]}  Ne2# {[%clk 0:00:27]} 0-1


[Site "https://www.chess.com"]

[Event "Titled Tuesday Blitz March 15 Late 2022"]
[White "Deac, Bogdan-Daniel"]
[Black "Bluebaum, Matthias"]
[WhiteFideId "1226380"]
[BlackFideId "24651516"]
[WhiteElo "3049"]
[BlackElo "2915"]
[Result "1/2-1/2"]
[Round "07"]
[TimeControl "180+1"]
[Date "2022.03.15"]
[WhiteClock "0:00:04"]
[BlackClock "0:00:14"]

1. d4 {[%clk 0:03:00]}  Nf6 {[%clk 0:02:59]} 2. c4 {[%clk 0:03:00]}  e6 {[%clk 0:03:00]} 3. Nf3 {[%clk 0:03:00]}  d5 {[%clk 0:03:00]} 4. g3 {[%clk 0:03:01]}  Bb4+ {[%clk 0:03:00]} 5. Bd2 {[%clk 0:03:01]}  a5 {[%clk 0:03:01]} 6. Bg2 {[%clk 0:03:01]}  O-O {[%clk 0:03:00]} 7. Qc2 {[%clk 0:02:59]}  Be7 {[%clk 0:03:00]} 8. Bf4 {[%clk 0:02:56]}  c6 {[%clk 0:03:00]} 9. Nbd2 {[%clk 0:02:56]}  Nh5 {[%clk 0:02:58]} 10. Be3 {[%clk 0:02:51]}  Nd7 {[%clk 0:02:54]} 11. O-O {[%clk 0:02:51]}  b6 {[%clk 0:02:53]} 12. cxd5 {[%clk 0:02:21]}  cxd5 {[%clk 0:02:52]} 13. Ne5 {[%clk 0:02:22]}  Bb7 {[%clk 0:02:28]} 14. Nc6 {[%clk 0:02:18]}  Qe8 {[%clk 0:02:07]} 15. Nxe7+ {[%clk 0:02:16]}  Qxe7 {[%clk 0:02:08]} 16. Rfc1 {[%clk 0:02:16]}  Rfc8 {[%clk 0:02:06]} 17. Qd1 {[%clk 0:02:11]}  Nhf6 {[%clk 0:02:05]} 18. Rxc8+ {[%clk 0:02:10]}  Rxc8 {[%clk 0:02:05]} 19. Rc1 {[%clk 0:02:10]}  Qd8 {[%clk 0:01:56]} 20. Bf4 {[%clk 0:02:06]}  Ba6 {[%clk 0:01:55]} 21. Bf1 {[%clk 0:01:56]}  h6 {[%clk 0:01:49]} 22. h4 {[%clk 0:01:52]}  Nf8 {[%clk 0:01:38]} 23. Nf3 {[%clk 0:01:43]}  Ng6 {[%clk 0:01:36]} 24. Be3 {[%clk 0:01:36]}  Ne4 {[%clk 0:01:35]} 25. Rxc8 {[%clk 0:01:15]}  Qxc8 {[%clk 0:01:36]} 26. Qc1 {[%clk 0:01:15]}  Qxc1 {[%clk 0:01:26]} 27. Bxc1 {[%clk 0:01:15]}  Bc4 {[%clk 0:01:24]} 28. a3 {[%clk 0:01:03]}  h5 {[%clk 0:01:08]} 29. Nd2 {[%clk 0:00:27]}  Nxd2 {[%clk 0:01:04]} 30. Bxd2 {[%clk 0:00:27]}  Ne7 {[%clk 0:01:00]} 31. Bf4 {[%clk 0:00:17]}  Nc6 {[%clk 0:00:51]} 32. Bc7 {[%clk 0:00:14]}  Nxd4 {[%clk 0:00:27]} 33. Bxb6 {[%clk 0:00:09]}  Nb3 {[%clk 0:00:27]} 34. f3 {[%clk 0:00:07]}  a4 {[%clk 0:00:26]} 35. Kf2 {[%clk 0:00:08]}  d4 {[%clk 0:00:25]} 36. g4 {[%clk 0:00:06]}  g6 {[%clk 0:00:22]} 37. gxh5 {[%clk 0:00:05]}  gxh5 {[%clk 0:00:23]} 38. f4 {[%clk 0:00:06]}  f6 {[%clk 0:00:21]} 39. Bg2 {[%clk 0:00:05]}  Bb5 {[%clk 0:00:16]} 40. Bf3 {[%clk 0:00:04]}  Be8 {[%clk 0:00:16]} 41. Be4 {[%clk 0:00:05]}  Kg7 {[%clk 0:00:16]} 42. Bc2 {[%clk 0:00:05]}  e5 {[%clk 0:00:16]} 43. fxe5 {[%clk 0:00:04]}  fxe5 {[%clk 0:00:17]} 44. e3 {[%clk 0:00:04]}  Bg6 {[%clk 0:00:14]} 45. Bxb3 {[%clk 0:00:03]}  axb3 {[%clk 0:00:14]} 46. exd4 {[%clk 0:00:03]}  exd4 {[%clk 0:00:15]} 47. Bxd4+ {[%clk 0:00:03]}  Kf7 {[%clk 0:00:15]} 48. Ke3 {[%clk 0:00:04]}  Ke6 {[%clk 0:00:15]} 49. a4 {[%clk 0:00:04]}  Be8 {[%clk 0:00:15]} 50. a5 {[%clk 0:00:04]}  Bb5 {[%clk 0:00:16]} 51. Kf4 {[%clk 0:00:04]}  Ba6 {[%clk 0:00:14]} 52. Kg5 {[%clk 0:00:04]}  Be2 {[%clk 0:00:15]} 53. Bc3 {[%clk 0:00:04]}  Kd5 {[%clk 0:00:15]} 54. a6 {[%clk 0:00:03]}  Bxa6 {[%clk 0:00:15]} 55. Kxh5 {[%clk 0:00:04]}  Ke6 {[%clk 0:00:14]} 56. Kg6 {[%clk 0:00:04]}  Bd3+ {[%clk 0:00:15]} 57. Kg7 {[%clk 0:00:04]}  Be2 {[%clk 0:00:15]} 58. Bd4 {[%clk 0:00:04]}  Kf5 {[%clk 0:00:13]} 59. Bc3 {[%clk 0:00:03]}  Bd1 {[%clk 0:00:14]} 60. Be1 {[%clk 0:00:03]}  Be2 {[%clk 0:00:14]} 61. Bc3 {[%clk 0:00:04]}  Bf3 {[%clk 0:00:14]} 62. Bf6 {[%clk 0:00:04]}  Bg4 {[%clk 0:00:14]} 63. Bc3 {[%clk 0:00:05]}  Bd1 {[%clk 0:00:14]} 64. Bf6 {[%clk 0:00:05]}  Be2 {[%clk 0:00:14]} 65. Bc3 {[%clk 0:00:04]} 1/2-1/2


[Site "https://www.chess.com"]

[Event "Titled Tuesday Blitz March 15 Late 2022"]
[White "Drozdowski, Kacper"]
[Black "Srihari L R"]
[WhiteFideId "1136720"]
[BlackFideId "46617116"]
[WhiteElo "2932"]
[BlackElo "2793"]
[Result "1-0"]
[Round "07"]
[TimeControl "180+1"]
[Date "2022.03.15"]
[WhiteClock "0:01:04"]
[BlackClock "0:00:03"]

1. e4 {[%clk 0:02:58]}  c5 {[%clk 0:02:58]} 2. Nf3 {[%clk 0:02:58]}  Nc6 {[%clk 0:02:52]} 3. d4 {[%clk 0:02:57]}  cxd4 {[%clk 0:02:49]} 4. Nxd4 {[%clk 0:02:58]}  e6 {[%clk 0:02:48]} 5. Nc3 {[%clk 0:02:57]}  Qc7 {[%clk 0:02:46]} 6. Be3 {[%clk 0:02:56]}  a6 {[%clk 0:02:45]} 7. Be2 {[%clk 0:02:56]}  Nf6 {[%clk 0:02:44]} 8. O-O {[%clk 0:02:56]}  Be7 {[%clk 0:02:42]} 9. f4 {[%clk 0:02:56]}  d6 {[%clk 0:02:37]} 10. Kh1 {[%clk 0:02:55]}  Bd7 {[%clk 0:02:31]} 11. Qe1 {[%clk 0:02:55]}  b5 {[%clk 0:02:26]} 12. a3 {[%clk 0:02:54]}  Na5 {[%clk 0:02:10]} 13. Qg3 {[%clk 0:02:52]}  Nc4 {[%clk 0:02:04]} 14. Bxc4 {[%clk 0:02:50]}  Qxc4 {[%clk 0:02:03]} 15. Rad1 {[%clk 0:02:47]}  g6 {[%clk 0:01:50]} 16. Qf3 {[%clk 0:02:44]}  O-O {[%clk 0:01:46]} 17. e5 {[%clk 0:02:39]}  dxe5 {[%clk 0:01:45]} 18. fxe5 {[%clk 0:02:39]}  Nh5 {[%clk 0:01:40]} 19. Bh6 {[%clk 0:02:35]}  Ng7 {[%clk 0:01:37]} 20. Ne4 {[%clk 0:02:35]}  Rad8 {[%clk 0:01:28]} 21. b3 {[%clk 0:02:08]}  Qc7 {[%clk 0:01:05]} 22. Nf6+ {[%clk 0:02:05]}  Kh8 {[%clk 0:01:05]} 23. Qh3 {[%clk 0:01:58]}  Bxf6 {[%clk 0:01:02]} 24. exf6 {[%clk 0:01:57]}  Nh5 {[%clk 0:00:59]} 25. Bxf8 {[%clk 0:01:53]}  Rxf8 {[%clk 0:00:58]} 26. Qh4 {[%clk 0:01:46]}  e5 {[%clk 0:00:56]} 27. Nf3 {[%clk 0:01:44]}  Bc6 {[%clk 0:00:49]} 28. Qg5 {[%clk 0:01:40]}  e4 {[%clk 0:00:39]} 29. Qh6 {[%clk 0:01:34]}  Rg8 {[%clk 0:00:30]} 30. Ng5 {[%clk 0:01:33]}  Nxf6 {[%clk 0:00:30]} 31. Rxf6 {[%clk 0:01:33]}  Rg7 {[%clk 0:00:31]} 32. Nxh7 {[%clk 0:01:27]}  e3 {[%clk 0:00:26]} 33. Ng5+ {[%clk 0:01:24]}  Kg8 {[%clk 0:00:26]} 34. Re1 {[%clk 0:01:24]}  Bxg2+ {[%clk 0:00:19]} 35. Kxg2 {[%clk 0:01:22]}  Qxc2+ {[%clk 0:00:15]} 36. Kg1 {[%clk 0:01:22]}  Qd2 {[%clk 0:00:09]} 37. Qh4 {[%clk 0:01:18]}  e2 {[%clk 0:00:05]} 38. Nxf7 {[%clk 0:01:06]}  Rxf7 {[%clk 0:00:03]} 39. Rxf7 {[%clk 0:01:06]}  Kxf7 {[%clk 0:00:04]} 40. Qf2+ {[%clk 0:01:06]}  Kg7 {[%clk 0:00:04]} 41. Qxe2 {[%clk 0:01:06]}  Qg5+ {[%clk 0:00:04]} 42. Kh1 {[%clk 0:01:04]}  Qd5+ {[%clk 0:00:04]} 43. Qe4 {[%clk 0:01:04]}  Qxb3 {[%clk 0:00:04]} 44. Qe5+ {[%clk 0:01:04]}  Kh7 {[%clk 0:00:03]} 45. Qe7+ {[%clk 0:01:04]}  Kh6 {[%clk 0:00:03]} 46. Qe3+ {[%clk 0:01:04]}  Qxe3 {[%clk 0:00:03]} 47. Rxe3 {[%clk 0:01:04]} 1-0


[Site "https://www.chess.com"]